fUSD/lending_fUSD_20251006
["ID","MTS","AMOUNT","RATE_DAILY","PERIOD"]
[389669240,1759781444136,-48815.724911,0.00029691,2]
[389669241,1759781444147,-1628.1348996,0.00029691,2]
[389669242,1759781444156,-2907.48,0.00029691,7]
[389669243,1759781444167,-1543.06,0.00029691,7]
[389669244,1759781444178,-500.0,0.00029692,7]
[389669245,1759781444187,-500.0,0.00029692,7]
[389669246,1759781444195,-500.0,0.00029692,7]
[389669247,1759781444206,-500.0,0.00029692,7]
[389669248,1759781444215,-500.0,0.00029692,7]
[389669249,1759781444224,-500.0,0.00029692,7]
[389669250,1759781444233,-500.0,0.00029692,7]
[389669251,1759781444242,-500.0,0.00029692,7]
[389669252,1759781444251,-496.12854138,0.00029692,7]
[389669253,1759781444260,-535.75,0.00029692,7]
[389669254,1759781444271,-535.75,0.00029692,7]
[389669255,1759781444279,-535.75,0.00029692,7]
[389669256,1759781444289,-535.75,0.00029692,7]
[389669257,1759781444298,-535.75,0.00029692,7]
[389669258,1759781444307,-535.75,0.00029692,7]
[389669259,1759781444316,-535.75,0.00029692,7]
[389669260,1759781444325,-535.75,0.00029692,7]
[389669261,1759781444335,-535.75,0.00029692,7]
[389669262,1759781444343,-535.75,0.00029692,7]
[389669263,1759781444352,-535.75,0.00029692,7]
[389669264,1759781444361,-535.75,0.00029692,7]
[389669265,1759781444370,-535.75,0.00029692,7]
[389669266,1759781444379,-535.75,0.00029692,7]
[389669267,1759781444388,-535.75,0.00029692,7]
[389669268,1759781444398,-535.87153845,0.00029692,7]
[389669269,1759781444407,-515.77,0.00029692,7]
[389669270,1759781444416,-515.77,0.00029692,7]
[389669271,1759781444425,-515.77,0.00029692,7]
[389669272,1759781444434,-515.77,0.00029692,7]
[389669273,1759781444443,-515.77,0.00029692,7]
[389669274,1759781444452,-515.77,0.00029692,7]
[389669275,1759781444461,-515.77,0.00029692,7]
[389669276,1759781444470,-515.77,0.00029692,7]
[389669277,1759781444479,-515.77,0.00029692,7]
[389669278,1759781444488,-515.77,0.00029692,7]
[389669279,1759781444497,-515.77,0.00029692,7]
[389669280,1759781444507,-515.77,0.00029692,7]
[389669281,1759781444515,-515.77,0.00029692,7]
[389669282,1759781444525,-515.77,0.00029692,7]
[389669283,1759781444534,-515.77,0.00029692,7]
[389669284,1759781444543,-515.99,0.00029692,7]
[389669285,1759781444552,-840.64029818,0.00029692,7]
[389669286,1759781444562,-500.0,0.00029693,7]
[389669287,1759781444571,-2907.48,0.00029693,7]
[389669288,1759781444581,-6479.54,0.00029693,7]
[389669289,1759781444590,-237669.20829698,0.00029693,7]
[389669290,1759781444599,-188.68476908,0.00029694,2]
[389669291,1759781444608,-400.0,0.00029694,7]
[389669292,1759781444617,-394.368666,0.00029694,7]
[389669293,1759781444627,-500.0,0.00029694,7]
[389669294,1759781444636,-500.0,0.00029694,7]
[389669295,1759781444645,-500.0,0.00029694,7]
[389669296,1759781444654,-5318.32,0.00029694,7]
[389669297,1759781444663,-2907.48,0.00029694,7]
[389669298,1759781444672,-500.0,0.00029694,7]
[389669299,1759781444681,-500.0,0.00029694,7]
[389669300,1759781444690,-1832.81,0.00029694,7]
[389669301,1759781444699,-500.0,0.00029694,7]
[389669302,1759781444708,-1000.0,0.00029694,30]
[389669303,1759781444717,-500.0,0.00029694,7]
[389669304,1759781444726,-1543.06,0.00029694,7]
[389669305,1759781444736,-6479.54,0.00029694,7]
[389669306,1759781444745,-746.77,0.00029694,7]
[389669307,1759781444754,-500.0,0.00029694,7]
[389669308,1759781444763,-500.0,0.00029694,7]
[389669309,1759781444772,-500.0,0.00029694,7]
[389669310,1759781444781,-524.17355865,0.00029694,7]
[389669311,1759781444791,-2586.76959893,0.00029695,7]
[389669312,1759781444800,-278804.6103506,0.00029695,2]
[389669313,1759781444809,-420.39275539,0.00029695,7]
[389669314,1759781444819,-9258.24534976,0.00029697,7]
[389669315,1759781444828,-986.56592256,0.00029698,7]
[389669316,1759781444837,-1371.87,0.000297,7]
[389669317,1759781444846,-474.96,0.000297,2]
[389669318,1759781444856,-2000.0,0.000297,2]
[389669319,1759781444864,-776.20503874,0.00029701,7]
[389669320,1759781444873,-26712.9385795,0.00029701,3]
[389669321,1759781444882,-756.70695971,0.00029701,7]
[389669322,1759781444891,-4657.23023247,0.00029702,7]
[389669323,1759781444900,-668.71692078,0.00029703,7]
[389669324,1759781444909,-18569.51062241,0.00029703,7]
[389669325,1759781444919,-3035.64552121,0.00029703,7]
[389669326,1759781444929,-20252.41170261,0.00029704,7]
[389669327,1759781444938,-7762.05038744,0.00029705,7]
[389669328,1759781444948,-3035.64552121,0.00029706,7]
[389669329,1759781444957,-148776.69284336,0.00029708,7]
[389669330,1759781444969,-262.734,0.00029708,7]
[389669331,1759781444984,-2420.8,0.00029708,7]
[389669332,1759781444995,-505.96403242,0.00029708,7]
[389669333,1759781445006,-24358.12415664,0.00029708,7]
[389669334,1759781445018,-1685.38,0.00029708,7]
[389669335,1759781445029,-500.0,0.00029708,7]
[389669336,1759781445042,-474.78029465,0.00029708,7]
[389669341,1759781446050,-4823.70811008,0.00029532,2]
[389669342,1759781446059,-8390.02663866,0.00029708,7]
[389669343,1759781446104,-591.83554641,0.00029708,7]
[389669344,1759782006975,-159.42263296,0.00013507,2]
[389669345,1759782010011,-23.35736704,0.00013507,2]
[389669346,1759782010033,-140.13263296,0.00014176,2]
[389669409,1759782632336,-162.62453292,0.00014394,2]
[389669410,1759782632346,-715.40546708,0.000149,2]
[389669411,1759782632392,-150.05616829,0.000149,2]
[389669412,1759782632400,-3308.262116,0.00015,2]
[389669413,1759782632410,-4998.53882697,0.000154,2]
[389669414,1759782632420,-2000.0,0.00015594,2]
[389669415,1759782632434,-300.0,0.00015754,2]
[389669416,1759782632443,-159.42263296,0.00015754,2]
[389669417,1759782632452,-182.78,0.00017833,2]
[389669418,1759782632461,-370.68887098,0.00019639,2]
[389669419,1759782632471,-444.69735312,0.00019908,2]
[389669420,1759782632480,-305.27,0.00019955,2]
[389669421,1759782632489,-305.67,0.00019958,2]
[389669422,1759782632501,-304.92,0.00019978,2]
[389669423,1759782632510,-301.65,0.00019978,2]
[389669424,1759782632519,-304.44,0.00019978,2]
[389669425,1759782632529,-303.4,0.00019984,2]
[389669426,1759782632538,-151.0,0.00019988,2]
[389669427,1759782632548,-255.0,0.00019999,2]
[389669428,1759782632558,-1563.71758947,0.0002,2]
[389669429,1759782632567,-500.0,0.0002,2]
[389669430,1759782632576,-500.0,0.0002,2]
[389669431,1759782632585,-170.64170344,0.0002,2]
[389669432,1759782632594,-500.1698718,0.0002,2]
[389669433,1759782632603,-500.0,0.0002,2]
[389669434,1759782632612,-500.0,0.0002,2]
[389669435,1759782632622,-9150.69038876,0.0002,2]
[389669436,1759782632642,-1735.30243652,0.0002,2]
[389669437,1759782632652,-500.0,0.0002,2]
[389669438,1759782632661,-2986.0,0.0002,2]
[389669439,1759782632670,-501.77899718,0.0002,2]
[389669440,1759782632679,-500.0,0.0002,2]
[389669442,1759782632688,-500.41506691,0.0002,2]
[389669443,1759782632697,-500.0,0.0002,2]
[389669444,1759782632707,-616.92723909,0.0002,2]
[389669445,1759782632715,-500.0,0.0002,2]
[389669446,1759782632724,-221.86664329,0.0002,2]
[389669447,1759782632733,-503.81488543,0.0002,2]
[389669449,1759782632743,-500.0,0.0002,2]
[389669450,1759782632751,-500.0,0.0002,2]
[389669451,1759782632761,-514.7959735,0.0002,2]
[389669453,1759782632771,-500.0,0.0002,2]
[389669455,1759782632780,-528.92,0.0002,2]
[389669457,1759782632790,-516.16,0.0002,2]
[389669459,1759782632799,-516.83,0.0002,2]
[389669460,1759782632808,-517.04,0.0002,2]
[389669461,1759782632817,-530.53,0.0002,2]
[389669463,1759782632826,-532.69,0.0002,2]
[389669465,1759782632835,-1563.71758947,0.000202,2]
[389669467,1759782632845,-1563.71758947,0.000204,2]
[389669468,1759782632855,-500.0,0.00020548,2]
[389669469,1759782632863,-1000.0,0.00020548,2]
[389669470,1759782632873,-500.0,0.00020548,2]
[389669471,1759782632882,-1563.71758947,0.000206,2]
[389669472,1759782632891,-1563.71758947,0.000208,2]
[389669473,1759782632900,-4107.91393468,0.000209,2]
[389669474,1759782632911,-7.50549003,0.000209,2]
[389669475,1759782632920,-150.0,0.00020993,2]
[389669476,1759782632930,-1563.71758947,0.00021,2]
[389669477,1759782632941,-1637.55651158,0.00021,2]
[389669478,1759782632953,-236.92348842,0.00021,2]
[389669479,1759782632964,-129.90891861,0.000212,2]
[389669480,1759782632975,-1433.80867086,0.000212,2]
[389669481,1759782632984,-1563.71758947,0.000214,2]
[389669482,1759782632993,-1449.55563618,0.000214,2]
[389669483,1759782633003,-10965.90417408,0.000214,2]
[389669484,1759782633013,-1563.71758947,0.000217,2]
[389669485,1759782633023,-3191.96,0.00021702,4]
[389669486,1759782633032,-1318.90132988,0.00021711,7]
[389669488,1759782633043,-1563.71758947,0.000219,2]
[389669489,1759782633053,-182.78,0.00022158,2]
[389669490,1759782633062,-377.3223,0.00024,2]
[389669491,1759782633072,-524.81,0.00024441,2]
[389669493,1759782633082,-10497.31299806,0.000245,2]
[389669494,1759782633091,-1111.187,0.00024571,7]
[389669495,1759782633100,-309.3,0.00024658,2]
[389669497,1759782633110,-1093.42,0.00025,7]
[389669498,1759782633120,-5000.0,0.00025366,2]
[389669499,1759782633129,-1000.0,0.00025377,2]
[389669500,1759782633139,-846.01,0.00025592,120]
[389669501,1759782633148,-1093.42,0.00026,7]
[389669502,1759782633157,-182.78,0.00026484,2]
[389669503,1759782633167,-7965.41053268,0.0002674,2]
[389669504,1759782633176,-8260.13072239,0.00026795,2]
[389669505,1759782633186,-1222.90281884,0.0002685,2]
[389669506,1759782633195,-175.28577664,0.00026951,4]
[389669507,1759782633205,-170.99563038,0.00026951,4]
[389669508,1759782633214,-150.0,0.00026951,4]
[389669509,1759782633224,-150.0,0.00026951,4]
[389669510,1759782633234,-150.00000001,0.00026951,4]
[389669511,1759782633246,-153.07515819,0.00026951,4]
[389669512,1759782633256,-708.0,0.00027,9]
[389669513,1759782633267,-1093.42,0.00027,7]
[389669514,1759782633276,-2712.03,0.00027258,2]
[389669515,1759782633286,-303.2060645,0.00027397,120]
[389669516,1759782633296,-1500.0,0.00027397,16]
[389669517,1759782633306,-309.3,0.00027589,2]
[389669518,1759782633315,-211.0,0.00028,2]
[389669519,1759782633325,-1207.665446,0.00028,60]
[389669520,1759782633335,-500.0,0.00028067,15]
[389669521,1759782633346,-684.25,0.00028107,2]
[389669522,1759782633355,-500.0,0.00028341,15]
[389669523,1759782633365,-500.0,0.00028615,15]
[389669524,1759782633375,-1093.42,0.000287,7]
[389669525,1759782633385,-6278.5,0.00028719,2]
[389669526,1759782633395,-1323.84,0.00028719,2]
[389669527,1759782633405,-846.01,0.00028791,120]
[389669528,1759782633414,-500.0,0.00028889,15]
[389669529,1759782633428,-200.0,0.000289,10]
[389669530,1759782633438,-1093.42,0.00029,7]
[389669531,1759782633447,-500.0,0.00029,10]
[389669532,1759782633456,-700.0,0.000291,10]
[389669533,1759782633465,-1000.0,0.00029115,2]
[389669534,1759782633474,-175.59,0.00029151,2]
[389669535,1759782633484,-1032.56,0.00029151,2]
[389669536,1759782633493,-545.29,0.00029151,2]
[389669537,1759782633502,-412.63,0.00029151,2]
[389669538,1759782633511,-229.0,0.00029156,2]
[389669539,1759782633521,-500.0,0.00029163,15]
[389669540,1759782633531,-878.03,0.0002917,3]
[389669541,1759782633540,-207.0,0.0002918,2]
[389669542,1759782633549,-1000.0,0.000292,10]
[389669543,1759782633558,-189.5657,0.00029215,2]
[389669544,1759782633567,-150.0,0.0002928,2]
[389669545,1759782633577,-150.0,0.0002928,2]
[389669546,1759782633586,-150.0,0.0002928,2]
[389669547,1759782633596,-1200.0,0.000293,10]
[389669548,1759782633606,-500.0,0.00029315,7]
[389669549,1759782633615,-500.0,0.00029315,7]
[389669550,1759782633625,-500.0,0.00029315,7]
[389669551,1759782633634,-500.0,0.00029315,7]
[389669552,1759782633644,-500.0,0.00029315,7]
[389669553,1759782633653,-500.0,0.00029315,7]
[389669554,1759782633663,-200.0,0.000294,10]
[389669555,1759782633672,-150.0,0.00029425,2]
[389669556,1759782633682,-500.0,0.00029437,15]
[389669557,1759782633692,-18972.6013,0.00029481,2]
[389669558,1759782633701,-500.0,0.00029491,7]
[389669559,1759782633710,-500.0,0.00029491,7]
[389669560,1759782633719,-500.0,0.00029491,7]
[389669561,1759782633728,-200.0,0.000295,10]
[389669562,1759782633737,-514.7,0.00029532,2]
[389669563,1759782633747,-200.0,0.00029577,2]
[389669564,1759782633759,-500.0,0.0002959,2]
[389669565,1759782633768,-150.0,0.0002959,2]
[389669566,1759782633777,-568.0,0.0002959,2]
[389669567,1759782633787,-500.0,0.0002959,2]
[389669568,1759782633795,-150.0,0.0002959,2]
[389669569,1759782633805,-500.0,0.0002959,2]
[389669570,1759782633814,-500.0,0.0002959,2]
[389669571,1759782633823,-150.53374238,0.0002959,2]
[389669572,1759782633832,-500.0,0.0002959,2]
[389669573,1759782633841,-150.0,0.0002959,2]
[389669574,1759782633850,-150.0,0.0002959,2]
[389669575,1759782633859,-255.55498601,0.0002959,2]
[389669576,1759782633868,-150.0,0.0002959,2]
[389669577,1759782633878,-150.0,0.0002959,2]
[389669578,1759782633887,-500.0,0.0002959,2]
[389669579,1759782633896,-150.0,0.0002959,2]
[389669580,1759782633906,-150.0,0.0002959,2]
[389669581,1759782633915,-150.75760875,0.0002959,2]
[389669582,1759782633924,-150.0,0.0002959,2]
[389669583,1759782633933,-500.0,0.0002959,2]
[389669584,1759782633942,-150.0,0.0002959,2]
[389669585,1759782633951,-150.0,0.0002959,2]
[389669586,1759782633961,-150.0,0.0002959,2]
[389669587,1759782633970,-150.0,0.0002959,2]
[389669588,1759782633979,-150.0,0.0002959,2]
[389669589,1759782633989,-500.0,0.0002959,2]
[389669590,1759782633998,-150.0,0.0002959,2]
[389669591,1759782634007,-150.0,0.0002959,2]
[389669592,1759782634016,-150.0,0.0002959,2]
[389669593,1759782634025,-150.0,0.0002959,2]
[389669594,1759782634034,-150.0,0.0002959,2]
[389669595,1759782634043,-150.0,0.0002959,2]
[389669596,1759782634052,-500.0,0.0002959,2]
[389669597,1759782634061,-500.0,0.0002959,2]
[389669598,1759782634070,-4804.84486676,0.00029599,2]
[389669599,1759782634080,-2000.0,0.000296,2]
[389669600,1759782634089,-200.0,0.000296,10]
[389669601,1759782634098,-165.92025584,0.000296,15]
[389669602,1759782634107,-3882.05922664,0.00029603,7]
[389669603,1759782634116,-155.24100775,0.00029605,7]
[389669604,1759782634126,-197.31318452,0.00029616,7]
[389669605,1759782634136,-168.12805963,0.00029617,7]
[389669606,1759782634145,-167.36114449,0.00029618,7]
[389669607,1759782634155,-167.36114449,0.0002962,7]
[389669608,1759782634164,-1862.89209299,0.00029622,7]
[389669609,1759782634173,-9524.21172468,0.00029627,7]
[389669610,1759782634182,-4804.84486672,0.00029628,2]
[389669611,1759782634191,-3949.3220675,0.00029635,7]
[389669612,1759782634200,-1214.25820849,0.00029635,7]
[389669613,1759782634209,-775.25716388,0.00029639,7]
[389669614,1759782634219,-48051.19557918,0.0002964,7]
[389669615,1759782634228,-8464.7977376,0.00029645,7]
[389669616,1759782634238,-739.89124949,0.00029649,7]
[389669617,1759782634250,-775.25716388,0.0002965,7]
[389669618,1759782634260,-505.91048358,0.00029653,7]
[389669619,1759782634269,-500.0,0.00029653,7]
[389669620,1759782634278,-500.0,0.00029653,7]
[389669621,1759782634287,-500.0,0.00029655,7]
[389669622,1759782634297,-500.0,0.00029655,7]
[389669623,1759782634306,-500.0,0.00029656,7]
[389669624,1759782634315,-4804.84486672,0.00029658,2]
[389669625,1759782634324,-267.48676831,0.00029658,7]
[389669626,1759782634333,-3949.3220675,0.00029659,7]
[389669627,1759782634343,-2647.45601264,0.00029662,7]
[389669628,1759782634351,-500.0,0.00029665,7]
[389669629,1759782634361,-500.0,0.00029665,7]
[389669630,1759782634370,-500.0,0.00029671,7]
[389669631,1759782634379,-342.46,0.00029674,2]
[389669632,1759782634388,-8464.7977376,0.00029675,7]
[389669633,1759782634397,-500.0,0.00029675,7]
[389669634,1759782634406,-2647.45601264,0.00029677,7]
[389669635,1759782634416,-155.24100775,0.00029678,7]
[389669636,1759782634427,-5000.0,0.00029682,2]
[389669637,1759782634436,-500.0,0.00029684,7]
[389669638,1759782634445,-218.649831,0.00029685,7]
[389669639,1759782634458,-48.83693731,0.00029685,7]
[389669640,1759782634468,-1145.53596269,0.00029687,2]
[389669641,1759782634479,-903.6336665,0.00029687,2]
[389669642,1759782634493,-1880.48346,0.00029687,2]
[389669645,1759782638244,-150.0,0.0002959,2]
[389669646,1759782638254,-500.0,0.0002959,2]
[389669647,1759782638263,-165.92025583,0.00029668,15]
[389669648,1759782638272,-560.83974417,0.00029668,2]
[389669649,1759782638284,-4439.16025583,0.00029668,2]
[389669650,1759782638293,-875.19177753,0.00029687,2]
[389669651,1759782638302,-500.0,0.00029688,7]
[389669652,1759782638312,-4588.28579635,0.00029688,7]
[389669653,1759782638323,-2325.65420365,0.00029688,7]
[389669654,1759782638332,-503.98956089,0.00029688,7]
[389669655,1759782638342,-500.0,0.00029688,7]
[389669656,1759782638351,-500.0,0.00029688,7]
[389669657,1759782638360,-2287.69692155,0.00029688,7]
[389669658,1759782638375,-675.68307845,0.00029688,7]
[389669659,1759782638384,-1493.17,0.00029688,7]
[389669660,1759782638394,-500.0,0.00029688,7]
[389669661,1759782638404,-1971.14692155,0.00029689,3]
[389669662,1759782638464,-30226.14217425,0.00029689,3]
[389669663,1759782638474,-500.0,0.00029689,7]
[389669664,1759782638483,-500.0,0.00029689,7]
[389669665,1759782638493,-500.0,0.00029689,7]
[389669666,1759782638504,-500.0,0.00029689,7]
[389669667,1759782638513,-200.0,0.0002969,7]
[389669668,1759782638525,-4426.1605048,0.0002969,2]
[389669669,1759782638534,-3949.3220675,0.00029692,7]
[389669670,1759782638547,-11859.37,0.00029692,7]
[389669671,1759782638556,-39764.39805423,0.00029692,7]
[389669842,1759782640327,-8286.79752495,0.00029692,7]
[389669845,1759782640338,-8464.7977376,0.00029693,7]
[389669847,1759782640347,-404.91760898,0.00029693,7]
[389669849,1759782640356,-630.95607001,0.00029693,7]
[389669851,1759782640365,-500.0,0.00029693,7]
[389669853,1759782640374,-500.0,0.00029693,7]
[389669854,1759782640383,-150.0,0.00029693,7]
[389669856,1759782640392,-500.0,0.00029693,7]
[389669858,1759782640401,-6204.71,0.00029693,7]
[389669860,1759782640410,-500.0,0.00029693,7]
[389669863,1759782640419,-500.0,0.00029693,7]
[389669883,1759782640428,-500.0,0.00029693,7]
[389669885,1759782640610,-500.0,0.00029693,7]
[389669888,1759782640620,-500.0,0.00029693,7]
[389669890,1759782640629,-500.0,0.00029693,7]
[389669891,1759782640638,-500.0,0.00029693,7]
[389669893,1759782640647,-500.0,0.00029693,7]
[389669895,1759782640656,-1000.0,0.00029693,7]
[389669897,1759782640665,-316.96636194,0.00029693,7]
[389669899,1759782640674,-500.0,0.00029693,7]
[389669901,1759782640683,-1000.0,0.00029693,30]
[389669903,1759782640693,-759.21,0.00029693,7]
[389669905,1759782640703,-500.0,0.00029693,7]
[389669907,1759782640712,-500.0,0.00029693,7]
[389669909,1759782640722,-500.0,0.00029693,7]
[389669911,1759782640733,-500.0,0.00029693,7]
[389669914,1759782640742,-500.0,0.00029693,7]
[389669915,1759782640751,-500.0,0.00029693,7]
[389669917,1759782640760,-500.0,0.00029693,7]
[389669920,1759782640770,-500.0,0.00029693,7]
[389669922,1759782640779,-500.0,0.00029693,7]
[389669924,1759782640788,-3198.23,0.00029693,7]
[389669926,1759782640797,-500.0,0.00029693,7]
[389669928,1759782640806,-500.0,0.00029694,7]
[389669930,1759782640815,-500.0,0.00029694,7]
[389669932,1759782640824,-400.0,0.00029698,7]
[389669934,1759782640833,-512.97085665,0.00029698,7]
[389669936,1759782640842,-501.65731674,0.00029698,7]
[389669939,1759782640863,-500.0,0.00029688,7]
[389669941,1759782640872,-143.04689338,0.00029698,7]
[389669943,1759782640881,-601.20708414,0.00029698,7]
[389669945,1759782640892,-475.5585,0.00029698,7]
[389669947,1759782640902,-472.18293008,0.00029698,7]
[389669950,1759782640913,-324.05148578,0.00029698,7]
[389669952,1759782640922,-500.0,0.00029698,7]
[389669954,1759782640931,-370.34851422,0.00029698,7]
[389669956,1759782640941,-129.65148578,0.00029698,7]
[389669958,1759782640950,-519.12728611,0.00029698,7]
[389669960,1759782640959,-500.0,0.00029698,7]
[389669962,1759782640968,-500.0,0.00029698,7]
[389669964,1759782640977,-500.0,0.00029698,7]
[389669966,1759782640986,-500.0,0.00029698,7]
[389669968,1759782640994,-500.0,0.00029698,7]
[389669970,1759782641003,-500.0,0.00029698,7]
[389669972,1759782641012,-500.0,0.00029698,7]
[389669974,1759782641021,-533.13650619,0.00029698,7]
[389669976,1759782641030,-5786.4033436,0.00029699,7]
[389669978,1759782641039,-2205.2381307,0.00029699,2]
[389669980,1759782641048,-9818.78980851,0.00029699,2]
[389670237,1759782643477,-301.01206992,0.00025107,2]
[389670239,1759782643487,-500.0,0.00029688,7]
[389670241,1759782643496,-3738.98793008,0.00029699,2]
[389670243,1759782643508,-24554.08749191,0.00029699,2]
[389670245,1759782643517,-536.54385729,0.00029699,2]
[389670247,1759782643528,-27694.3249634,0.00029699,2]
[389670250,1759782643541,-12117.03303451,0.00029699,2]
[389670252,1759782643551,-1628.1348996,0.00029699,2]
[389670254,1759782643560,-775.25716388,0.000297,7]
[389670256,1759782643569,-200.0,0.000297,10]
[389670258,1759782643578,-151.0,0.000297,2]
[389670259,1759782643587,-1781.95824,0.000297,2]
[389670261,1759782643596,-32197.2890958,0.00029701,3]
[389670263,1759782643606,-3949.3220675,0.00029705,7]
[389670266,1759782643615,-1000.0,0.00029707,12]
[389670268,1759782643625,-1000.0,0.00029707,5]
[389670269,1759782643635,-49702.87078484,0.00029708,7]
[389670272,1759782643644,-6737.1,0.00029708,120]
[389670273,1759782643653,-155.24100775,0.00029708,7]
[389670275,1759782643662,-1634.57835756,0.00029709,7]
[389670277,1759782643671,-155.458996,0.00029709,3]
[389670279,1759782643680,-154.647172,0.00029709,3]
[389670281,1759782643689,-20252.41170261,0.0002971,7]
[389670283,1759782643698,-168.08880167,0.00029711,7]
[389670285,1759782643707,-168.12805964,0.00029711,7]
[389670287,1759782643717,-35657.46997915,0.00029711,7]
[389670289,1759782643725,-6714.54913481,0.00029711,2]
[389670291,1759782643735,-500.0,0.00029711,15]
[389670293,1759782643744,-1214.25820849,0.00029711,7]
[389670295,1759782643753,-2942.74928772,0.00029712,7]
[389670297,1759782643762,-88078.51114543,0.00029712,7]
[389670299,1759782643772,-3882.05922664,0.00029712,7]
[389670301,1759782643781,-11811.85507161,0.00029713,7]
[389670304,1759782643791,-197.31318452,0.00029713,7]
[389670306,1759782643801,-1862.89209299,0.00029714,7]
[389670309,1759782643810,-2586.76959893,0.00029714,7]
[389670312,1759782643819,-2647.45601264,0.00029715,7]
[389670314,1759782643828,-11811.85507161,0.00029715,7]
[389670316,1759782643839,-14761.13239399,0.00029716,7]
[389670318,1759782643847,-4804.84486672,0.00029716,2]
[389670320,1759782643856,-1552.41007749,0.00029717,7]
[389670322,1759782643865,-1261.17826618,0.00029717,7]
[389670324,1759782643874,-155.458996,0.00029718,3]
[389670326,1759782643883,-154.647172,0.00029718,3]
[389670328,1759782643892,-153.774401,0.00029718,3]
[389670330,1759782643901,-1862.89209299,0.00029718,7]
[389670332,1759782643909,-1634.57835756,0.0002972,7]
[389670334,1759782643918,-8679.60501541,0.00029721,7]
[389670336,1759782643927,-18569.51062241,0.00029721,7]
[389670338,1759782643936,-326.91567151,0.00029722,7]
[389670340,1759782643944,-326.91567151,0.00029722,7]
[389670342,1759782643954,-4657.23023247,0.00029723,7]
[389670344,1759782643962,-155.458996,0.00029723,4]
[389670345,1759782643971,-154.647172,0.00029723,4]
[389670347,1759782643980,-153.774401,0.00029723,4]
[389670349,1759782643989,-1634.57835756,0.00029724,7]
[389670352,1759782643998,-11811.85507161,0.00029724,7]
[389670354,1759782644008,-1735.92100308,0.00029725,7]
[389670356,1759782644017,-2647.45601264,0.00029725,7]
[389670357,1759782644025,-155.458996,0.00029727,3]
[389670359,1759782644034,-154.647172,0.00029727,3]
[389670361,1759782644043,-153.774401,0.00029727,3]
[389670363,1759782644052,-420.39275539,0.00029727,7]
[389670365,1759782644061,-504.47130647,0.00029729,7]
[389670367,1759782644070,-42323.988688,0.00029729,7]
[389670370,1759782644080,-3881.02519373,0.00029729,7]
[389670372,1759782644089,-237669.20829698,0.0002973,7]
[389670374,1759782644098,-35657.46997915,0.00029731,7]
[389670376,1759782644107,-1851.64906995,0.00029731,7]
[389670378,1759782644115,-420.39275539,0.00029732,7]
[389670380,1759782644124,-986.56592256,0.00029733,7]
[389670382,1759782644133,-794.06525474,0.00029733,7]
[389670384,1759782644143,-794.06525474,0.00029734,7]
[389670386,1759782644152,-2101.96377695,0.00029734,7]
[389670388,1759782644161,-197.31318452,0.00029735,7]
[389670390,1759782644170,-88078.51114543,0.00029736,7]
[389670392,1759782644178,-2942.74928772,0.00029736,7]
[389670394,1759782644188,-151.723226,0.00029736,3]
[389670396,1759782644197,-220.547291,0.00029736,3]
[389670398,1759782644206,-155.458996,0.00029736,3]
[389670400,1759782644215,-172.168856,0.00029736,3]
[389670402,1759782644224,-155.028891,0.00029736,3]
[389670404,1759782644233,-152.960804,0.00029736,3]
[389670406,1759782644242,-153.231748,0.00029736,3]
[389670408,1759782644251,-154.647172,0.00029736,3]
[389670409,1759782644260,-153.774401,0.00029736,3]
[389670410,1759782644269,-158.43655,0.00029736,3]
[389670411,1759782644277,-216.668003,0.00029736,3]
[389670412,1759782644286,-150.0,0.00029736,3]